fUSD/lending_fUSD_20241210
["ID","MTS","AMOUNT","RATE_DAILY","PERIOD"]
[344826181,1733811038272,-300.0,0.00011098,3]
[344826182,1733811038282,-300.0,0.00011098,3]
[344826183,1733811038291,-300.0,0.00011098,3]
[344826184,1733811038301,-300.0,0.00011098,3]
[344826185,1733811038310,-500.0,0.00011098,2]
[344826186,1733811038319,-521.65342929,0.00011098,2]
[344826187,1733811038330,-1000.0,0.00011099,2]
[344826188,1733811038340,-500.0,0.00011099,2]
[344826190,1733811038349,-1336.3442,0.00011099,2]
[344826192,1733811038359,-500.0,0.00011099,2]
[344826194,1733811038368,-502.02096884,0.00011099,2]
[344826195,1733811038378,-500.0,0.00011099,2]
[344826196,1733811038387,-500.0,0.00011099,2]
[344826197,1733811038396,-506.60090553,0.00011099,2]
[344826198,1733811038405,-500.0,0.00011099,2]
[344826199,1733811038414,-630.36,0.00011099,2]
[344826200,1733811038423,-500.0,0.00011099,2]
[344826201,1733811038433,-500.0,0.00011099,2]
[344826202,1733811038441,-500.0,0.00011099,2]
[344826203,1733811038451,-500.0,0.00011099,2]
[344826204,1733811038460,-500.0,0.00011099,2]
[344826205,1733811038468,-500.0,0.00011099,2]
[344826206,1733811038478,-607.59,0.00011099,2]
[344826207,1733811038487,-501.69271611,0.00011099,2]
[344826208,1733811038497,-500.0,0.00011099,2]
[344826209,1733811038507,-472.72649894,0.00011099,2]
[344826210,1733811038516,-500.0,0.00011099,2]
[344826211,1733811038526,-500.0,0.00011099,2]
[344826212,1733811038535,-511.3389942,0.00011099,2]
[344826213,1733811038545,-500.0,0.00011099,2]
[344826214,1733811038554,-314.13762699,0.00011099,2]
[344826215,1733811038563,-500.0,0.00011099,2]
[344826216,1733811038572,-313.53,0.00011099,2]
[344826217,1733811038582,-414.17624668,0.00011099,2]
[344826218,1733811038591,-534.20501604,0.00011099,2]
[344826219,1733811038601,-500.0,0.00011099,2]
[344826220,1733811038611,-500.0,0.00011099,2]
[344826221,1733811038620,-500.0,0.00011099,2]
[344826222,1733811038629,-500.0,0.00011099,2]
[344826223,1733811038639,-500.0,0.00011099,2]
[344826224,1733811038648,-500.0,0.00011099,2]
[344826225,1733811038657,-532.96855561,0.00011099,2]
[344826226,1733811038666,-517.61314324,0.00011099,2]
[344826227,1733811038676,-616.22689794,0.00011099,2]
[344826228,1733811038685,-513.86177232,0.00011099,2]
[344826229,1733811038694,-500.0,0.00011099,2]
[344826230,1733811038704,-173.66,0.00011099,2]
[344826231,1733811038713,-508.37983565,0.00011099,2]
[344826232,1733811038722,-500.0,0.00011099,2]
[344826233,1733811038732,-510.89065729,0.00011099,2]
[344826234,1733811038741,-344.38,0.00011099,2]
[344826235,1733811038750,-517.12633174,0.00011099,2]
[344826236,1733811038759,-500.0,0.00011099,2]
[344826237,1733811038768,-500.0,0.00011099,2]
[344826238,1733811038777,-500.0,0.00011099,2]
[344826239,1733811038786,-500.0,0.00011099,2]
[344826240,1733811038795,-500.0,0.00011099,2]
[344826241,1733811038805,-513.37798312,0.00011099,2]
[344826242,1733811038814,-528.51013322,0.00011099,2]
[344826243,1733811038823,-500.0,0.00011099,2]
[344826244,1733811038833,-500.0,0.00011099,2]
[344826245,1733811038842,-500.0,0.00011099,2]
[344826246,1733811038851,-502.55751585,0.00011099,2]
[344826247,1733811038861,-534.23451324,0.00011099,2]
[344826248,1733811038870,-505.05265162,0.00011099,2]
[344826249,1733811038879,-206.66814677,0.00011099,2]
[344826250,1733811038888,-526.29587027,0.00011099,2]
[344826251,1733811038898,-508.19523658,0.00011099,2]
[344826252,1733811038907,-582.73616442,0.00011099,2]
[344826253,1733811038916,-511.66115664,0.00011099,2]
[344826254,1733811038925,-511.66799206,0.00011099,2]
[344826255,1733811038934,-533.83378727,0.00011099,2]
[344826256,1733811038943,-515.65633707,0.00011099,2]
[344826257,1733811038952,-500.0,0.00011099,2]
[344826258,1733811038961,-512.69764715,0.00011099,2]
[344826259,1733811038970,-521.66968293,0.00011099,2]
[344826260,1733811038979,-495.26445108,0.00011099,2]
[344826261,1733811038989,-525.85213528,0.00011099,2]
[344826262,1733811038998,-622.68910273,0.00011099,2]
[344826263,1733811039009,-504.32584405,0.00011099,2]
[344826264,1733811039017,-503.08431673,0.00011099,2]
[344826265,1733811039027,-524.06076895,0.00011099,2]
[344826266,1733811039036,-511.92161313,0.00011099,2]
[344826267,1733811039045,-542.12671626,0.00011099,2]
[344826268,1733811039056,-504.43726464,0.00011099,2]
[344826269,1733811039065,-516.90811891,0.00011099,2]
[344826270,1733811039074,-508.40300252,0.00011099,2]
[344826271,1733811039085,-567.07690546,0.00011099,2]
[344826272,1733811039095,-516.41287069,0.00011099,2]
[344826273,1733811039104,-508.55059295,0.00011099,2]
[344826274,1733811039113,-515.51507863,0.00011099,2]
[344826275,1733811039123,-517.43219363,0.00011099,2]
[344826276,1733811039132,-509.36064406,0.00011099,2]
[344826277,1733811039141,-506.67341837,0.00011099,2]
[344826278,1733811039150,-248.48363653,0.00011099,2]
[344826279,1733811039159,-500.0,0.00011099,2]
[344826280,1733811039169,-500.0,0.00011099,2]
[344826281,1733811039178,-500.0,0.00011099,2]
[344826282,1733811039187,-500.0,0.00011099,2]
[344826283,1733811039196,-507.92967167,0.00011099,2]
[344826284,1733811039206,-500.0,0.00011099,2]
[344826285,1733811039215,-500.0,0.00011099,2]
[344826286,1733811039224,-500.0,0.00011099,2]
[344826287,1733811039233,-500.0,0.00011099,2]
[344826288,1733811039242,-225.18924952,0.00011099,2]
[344826289,1733811039251,-511.70224114,0.00011099,2]
[344826290,1733811039260,-500.0,0.00011099,2]
[344826291,1733811039269,-500.0,0.00011099,2]
[344826292,1733811039278,-500.0,0.00011099,2]
[344826293,1733811039288,-500.0,0.00011099,2]
[344826294,1733811039297,-500.0,0.00011099,2]
[344826295,1733811039306,-500.0,0.00011099,2]
[344826296,1733811039315,-500.0,0.00011099,2]
[344826297,1733811039324,-500.0,0.00011099,2]
[344826298,1733811039336,-526.06859515,0.00011099,2]
[344826299,1733811039345,-509.1518149,0.00011099,2]
[344826300,1733811039355,-525.65233978,0.00011099,2]
[344826301,1733811039364,-504.94372843,0.00011099,2]
[344826302,1733811039373,-199.0,0.00011099,2]
[344826303,1733811039383,-513.5,0.00011099,2]
[344826304,1733811039392,-500.0,0.00011099,2]
[344826305,1733811039402,-500.0,0.00011099,2]
[344826306,1733811039413,-500.0,0.00011099,2]
[344826307,1733811039422,-351.61,0.00011099,2]
[344826308,1733811039432,-500.0,0.00011099,2]
[344826309,1733811039441,-154.00350304,0.00011099,2]
[344826310,1733811039451,-204.39863095,0.00011099,2]
[344826311,1733811039460,-504.77752602,0.00011099,2]
[344826312,1733811039470,-500.0,0.00011099,2]
[344826313,1733811039480,-519.9,0.00011099,2]
[344826314,1733811039491,-504.69105933,0.00011099,2]
[344826315,1733811039502,-506.85847726,0.00011099,2]
[344826316,1733811039512,-500.0,0.00011099,2]
[344826317,1733811039521,-504.41737217,0.00011099,2]
[344826318,1733811039531,-500.0,0.00011099,2]
[344826319,1733811039541,-388.21154383,0.00011099,2]
[344826320,1733811039560,-162.6796705,0.00011099,2]
[344826321,1733811039570,-575.57997319,0.00011099,2]
[344826322,1733811039582,-500.0,0.00011099,2]
[344826323,1733811039592,-500.0,0.00011099,2]
[344826324,1733811039601,-500.0,0.00011099,2]
[344826325,1733811039611,-500.0,0.00011099,2]
[344826326,1733811039621,-500.0,0.00011099,2]
[344826327,1733811039630,-500.0,0.00011099,2]
[344826328,1733811039640,-500.0,0.00011099,2]
[344826329,1733811039650,-500.0,0.00011099,2]
[344826330,1733811039659,-284.40419373,0.00011099,2]
[344826331,1733811039669,-500.0,0.00011099,2]
[344826332,1733811039679,-500.0,0.00011099,2]
[344826333,1733811039688,-606.16,0.00011099,2]
[344826334,1733811039698,-500.0,0.00011099,2]
[344826335,1733811039707,-500.0,0.00011099,2]
[344826337,1733811039717,-330.61559734,0.00011099,2]
[344826339,1733811039729,-169.38440266,0.00011099,2]
[344826340,1733811039738,-607.16,0.00011099,2]
[344826341,1733811039748,-500.0,0.00011099,2]
[344826342,1733811039758,-452.99,0.00011099,2]
[344826343,1733811039767,-500.0,0.00011099,2]
[344826344,1733811039777,-500.0,0.00011099,2]
[344826345,1733811039787,-500.0,0.00011099,2]
[344826346,1733811039797,-509.14,0.00011099,2]
[344826347,1733811039808,-500.0,0.00011099,2]
[344826348,1733811039819,-500.0,0.00011099,2]
[344826349,1733811039832,-500.0,0.00011099,2]
[344826350,1733811039842,-500.0,0.00011099,2]
[344826351,1733811039852,-500.0,0.00011099,2]
[344826352,1733811039862,-500.0,0.00011099,2]
[344826353,1733811039872,-500.0,0.00011099,2]
[344826354,1733811039882,-500.0,0.00011099,2]
[344826355,1733811039891,-500.0,0.00011099,2]
[344826356,1733811039901,-500.0,0.00011099,2]
[344826357,1733811039911,-500.0,0.00011099,2]
[344826358,1733811039920,-500.0,0.00011099,2]
[344826359,1733811039929,-500.0,0.00011099,2]
[344826360,1733811039939,-500.0,0.00011099,2]
[344826361,1733811039948,-500.0,0.00011099,2]
[344826362,1733811039958,-500.0,0.00011099,2]
[344826363,1733811039967,-500.0,0.00011099,2]
[344826364,1733811039978,-500.0,0.00011099,2]
[344826365,1733811039987,-500.0,0.00011099,2]
[344826366,1733811039997,-500.0,0.00011099,2]
[344826367,1733811040009,-500.0,0.00011099,2]
[344826368,1733811040018,-12.50143118,0.00011099,2]
[344826369,1733811040038,-487.49856882,0.00011099,2]
[344826370,1733811040048,-500.0,0.00011099,2]
[344826371,1733811040057,-463.54,0.00011099,2]
[344826372,1733811040066,-500.0,0.00011099,2]
[344826373,1733811040075,-500.0,0.00011099,2]
[344826374,1733811040088,-500.0,0.00011099,2]
[344826375,1733811040097,-571.48816542,0.00011099,2]
[344826376,1733811040107,-500.0,0.00011099,2]
[344826377,1733811040117,-500.0,0.00011099,2]
[344826378,1733811040126,-500.0,0.00011099,2]
[344826379,1733811040135,-500.0,0.00011099,2]
[344826380,1733811040144,-500.0,0.00011099,2]
[344826381,1733811040153,-500.0,0.00011099,2]
[344826382,1733811040164,-500.0,0.00011099,2]
[344826383,1733811040173,-500.0,0.00011099,2]
[344826384,1733811040183,-500.0,0.00011099,2]
[344826385,1733811040192,-500.0,0.00011099,2]
[344826386,1733811040201,-500.0,0.00011099,2]
[344826387,1733811040210,-500.0,0.00011099,2]
[344826389,1733811040219,-500.0,0.00011099,2]
[344826391,1733811040228,-500.0,0.00011099,2]
[344826393,1733811040238,-500.0,0.00011099,2]
[344826395,1733811040247,-500.0,0.00011099,2]
[344826397,1733811040257,-500.0,0.00011099,2]
[344826399,1733811040266,-631.35,0.00011099,2]
[344826400,1733811040276,-3388.87796077,0.00011099,2]
[344826401,1733811040284,-500.0,0.00011099,2]
[344826402,1733811040293,-500.0,0.00011099,2]
[344826403,1733811040302,-500.0,0.00011099,2]
[344826404,1733811040311,-500.0,0.00011099,2]
[344826405,1733811040320,-500.0,0.00011099,2]
[344826406,1733811040329,-500.0,0.00011099,2]
[344826407,1733811040339,-500.0,0.00011099,2]
[344826409,1733811040348,-500.0,0.00011099,2]
[344826410,1733811040357,-500.0,0.00011099,2]
[344826411,1733811040369,-500.0,0.00011099,2]
[344826413,1733811040379,-500.0,0.00011099,2]
[344826415,1733811040388,-500.0,0.00011099,2]
[344826417,1733811040398,-500.0,0.00011099,2]
[344826419,1733811040407,-500.0,0.00011099,2]
[344826421,1733811040416,-500.0,0.00011099,2]
[344826423,1733811040426,-500.0,0.00011099,2]
[344826425,1733811040435,-500.0,0.00011099,2]
[344826427,1733811040444,-500.0,0.00011099,2]
[344826429,1733811040454,-500.0,0.00011099,2]
[344826431,1733811040463,-500.0,0.00011099,2]
[344826433,1733811040472,-500.0,0.00011099,2]
[344826455,1733811040666,-281.8,0.00011099,2]
[344826457,1733811040676,-500.0,0.00011099,2]
[344826459,1733811040686,-500.0,0.00011099,2]
[344826460,1733811040696,-500.0,0.00011099,2]
[344826461,1733811040705,-500.0,0.00011099,2]
[344826462,1733811040715,-500.0,0.00011099,2]
[344826463,1733811040725,-500.0,0.00011099,2]
[344826464,1733811040734,-500.0,0.00011099,2]
[344826465,1733811040743,-500.0,0.00011099,2]
[344826466,1733811040753,-500.0,0.00011099,2]
[344826467,1733811040762,-500.0,0.00011099,2]
[344826468,1733811040771,-500.0,0.00011099,2]
[344826469,1733811040781,-500.0,0.00011099,2]
[344826470,1733811040791,-500.0,0.00011099,2]
[344826471,1733811040800,-500.0,0.00011099,2]
[344826472,1733811040809,-574.56256838,0.00011099,2]
[344826473,1733811040819,-500.0,0.00011099,2]
[344826474,1733811040828,-500.0,0.00011099,2]
[344826476,1733811040840,-500.0,0.00011099,2]
[344826478,1733811040850,-500.0,0.00011099,2]
[344826480,1733811040859,-500.0,0.00011099,2]
[344826482,1733811040868,-500.0,0.00011099,2]
[344826484,1733811040877,-500.0,0.00011099,2]
[344826486,1733811040886,-500.0,0.00011099,2]
[344826488,1733811040895,-500.0,0.00011099,2]
[344826490,1733811040905,-500.0,0.00011099,2]
[344826492,1733811040914,-500.0,0.00011099,2]
[344826494,1733811040923,-500.0,0.00011099,2]
[344826496,1733811040932,-500.28165695,0.00011099,2]
[344826498,1733811040941,-500.0,0.00011099,2]
[344826500,1733811040950,-371.64,0.00011099,2]
[344826502,1733811040959,-500.0,0.00011099,2]
[344826504,1733811040968,-500.0,0.00011099,2]
[344826506,1733811040978,-500.0,0.00011099,2]
[344826508,1733811040987,-500.0,0.00011099,2]
[344826510,1733811040997,-500.0,0.00011099,2]
[344826512,1733811041008,-292.93,0.00011099,2]
[344826514,1733811041017,-500.0,0.00011099,2]
[344826516,1733811041026,-500.0,0.00011099,2]
[344826518,1733811041035,-487.82,0.00011099,2]
[344826519,1733811041044,-351.03484274,0.00011099,2]
[344826521,1733811041055,-500.0,0.00011099,2]
[344826523,1733811041077,-500.0,0.00011099,2]
[344826524,1733811041096,-484.52101045,0.00011099,2]
[344826526,1733811041106,-876.05,0.00011099,2]
[344826528,1733811041116,-876.05,0.00011099,2]
[344826529,1733811041125,-876.05,0.00011099,2]
[344826531,1733811041135,-876.05,0.00011099,2]
[344826533,1733811041143,-876.05,0.00011099,2]
[344826534,1733811041153,-876.05,0.00011099,2]
[344826536,1733811041162,-876.05,0.00011099,2]
[344826538,1733811041172,-876.05,0.00011099,2]
[344826539,1733811041182,-876.05,0.00011099,2]
[344826541,1733811041198,-876.05,0.00011099,2]
[344826543,1733811041208,-876.05,0.00011099,2]
[344826545,1733811041219,-876.05,0.00011099,2]
[344826546,1733811041233,-876.05,0.00011099,2]
[344826548,1733811041243,-876.05,0.00011099,2]
[344826550,1733811041252,-876.05,0.00011099,2]
[344826551,1733811041261,-876.05,0.00011099,2]
[344826553,1733811041270,-876.05,0.00011099,2]
[344826555,1733811041280,-876.05,0.00011099,2]
[344826556,1733811041290,-876.05,0.00011099,2]
[344826558,1733811041299,-876.05,0.00011099,2]
[344826560,1733811041308,-876.05,0.00011099,2]
[344826561,1733811041318,-876.05,0.00011099,2]
[344826563,1733811041327,-876.05,0.00011099,2]
[344826565,1733811041339,-876.09883722,0.00011099,2]
[344826566,1733811041348,-500.0,0.00011099,2]
[344826568,1733811041358,-500.0,0.00011099,2]
[344826570,1733811041367,-206.42072891,0.00011099,2]
[344826572,1733811041377,-500.0,0.00011099,2]
[344826573,1733811041386,-500.0,0.00011099,2]
[344826575,1733811041395,-500.0,0.00011099,2]
[344826577,1733811041404,-500.0,0.00011099,2]
[344826578,1733811041413,-500.0,0.00011099,2]
[344826580,1733811041423,-520.26611277,0.00011099,2]
[344826582,1733811041432,-500.0,0.00011099,2]
[344826583,1733811041441,-1007.0,0.00011099,2]
[344826585,1733811041450,-4332687.95251756,0.000111,2]
[344826587,1733811041458,-150918.0749765,0.000111,2]
[344826589,1733811041467,-10594396.80888841,0.000111,2]
[344826591,1733811041489,-11052.6636401,0.000111,2]
[344826593,1733811041501,-607.75382201,0.000111,2]
[344826603,1733811041609,-262.26,0.00011099,2]
[344826605,1733811041619,-413.80550055,0.000111,2]
[344826607,1733811041631,-7799.12821876,0.000111,2]
[344826609,1733811041643,-96829.56752776,0.000111,2]
[344826734,1733811042999,-974.74,0.00010278,2]
[344826736,1733811043012,-732.25999859,0.000111,2]
[344826738,1733811043026,-1460.75867373,0.000111,2]
[344826774,1733811045927,-1470.714,0.000111,2]
[344826775,1733811045939,-3898.87766761,0.000111,2]
[344826776,1733811045950,-2293.373968,0.000111,2]
[344826777,1733811045961,-1006.8,0.000111,2]
[344826778,1733811046041,-3700.69662169,0.000111,2]
[344826779,1733811046065,-1489.43762734,0.000111,2]
[344826780,1733811046177,-1335.72801762,0.000111,2]
[344826781,1733811046291,-590.36767,0.000111,2]
[344826852,1733812231963,-300.0,6.939e-05,2]
[344826853,1733812231973,-558.21937023,6.94e-05,2]
[344826854,1733812231985,-22197.0,6.94e-05,2]
[344826855,1733812231994,-420.0,7.633e-05,2]
[344826856,1733812232003,-152.17,7.956e-05,2]
[344826857,1733812232012,-404.05,8.219e-05,2]
[344826858,1733812232022,-587.0,8.396e-05,2]
[344826859,1733812232031,-150.0,8.558e-05,2]
[344826860,1733812232040,-823.0,9.236e-05,2]
[344826861,1733812232050,-1000.0,9.748e-05,2]
[344826862,1733812232060,-1852.42,9.785e-05,2]
[344826863,1733812232070,-250.0,0.00010066,2]
[344826864,1733812232079,-1152.0,0.00010159,2]
[344826865,1733812232088,-250.0,0.00010179,2]
[344826866,1733812232098,-495.98,0.0001022,2]
[344826867,1733812232107,-253.84,0.00010226,2]
[344826868,1733812232117,-1115.64,0.00010283,2]
[344826869,1733812232127,-2000.0,0.000103,2]
[344826870,1733812232136,-200.91,0.00010374,2]
[344826871,1733812232146,-404.05,0.00010477,2]
[344826872,1733812232155,-150.0,0.00010533,2]
[344826873,1733812232165,-150.0,0.00010534,2]
[344826874,1733812232174,-26533.0382558,0.00010534,10]
[344826875,1733812232183,-364.814,0.0001055,2]
[344826876,1733812232192,-974.74,0.00010578,2]
[344826877,1733812232201,-999.41,0.00010611,2]
[344826878,1733812232210,-435.83,0.00010613,2]
[344826879,1733812232219,-974.74,0.00010678,2]
[344826880,1733812232228,-604.57,0.00010678,2]
[344826881,1733812232241,-161.92,0.00010734,2]
[344826882,1733812232251,-10173.79051909,0.00010766,2]
[344826883,1733812232268,-7931.46225038,0.00010766,2]
[344826884,1733812232283,-3342.095741,0.00010766,2]
[344826886,1733812232315,-640.92148953,0.00010766,2]
[344826888,1733812232324,-1000.0,0.00010967,2]
[344826890,1733812232334,-1065.91438089,0.00011098,2]
[344826891,1733812232344,-374.44561911,0.00011098,2]
[344826892,1733812232353,-300.0,0.00011098,2]
[344826893,1733812232363,-300.0,0.00011098,2]
[344826894,1733812232376,-300.0,0.00011098,2]
[344826895,1733812232390,-300.0,0.00011098,2]
[344826896,1733812232399,-300.0,0.00011098,2]
[344826897,1733812232409,-300.0,0.00011098,2]
[344826898,1733812232419,-300.0,0.00011098,2]
[344826899,1733812232428,-300.0,0.00011098,2]
[344826900,1733812232437,-156.08554881,0.00011098,2]
[344826912,1733812238053,-143.91445119,0.00011098,2]
[344826913,1733812238063,-300.0,0.00011098,3]
[344826914,1733812238072,-300.0,0.00011098,3]
[344826915,1733812238081,-300.0,0.00011098,3]
[344826916,1733812238091,-300.0,0.00011098,3]
[344826917,1733812238100,-300.0,0.00011098,3]
[344826918,1733812238109,-300.0,0.00011098,3]
[344826919,1733812238119,-300.0,0.00011098,3]
[344826920,1733812238128,-300.0,0.00011098,3]
[344826921,1733812238137,-300.0,0.00011098,3]
[344826922,1733812238146,-340.0,0.00011098,2]
[344826923,1733812238155,-500.0,0.00011098,2]
[344826924,1733812238164,-500.0,0.00011098,2]
[344826925,1733812238173,-515.60254681,0.00011098,2]
[344826926,1733812238182,-466.88487934,0.00011098,2]
[344826927,1733812238191,-500.0,0.00011098,2]
[344826928,1733812238200,-500.0,0.00011098,2]
[344826929,1733812238210,-500.0,0.00011098,2]
[344826930,1733812238219,-500.0,0.00011098,2]
[344826931,1733812238228,-500.0,0.00011098,2]
[344826932,1733812238237,-500.0,0.00011098,2]
[344826933,1733812238246,-500.0,0.00011098,2]
[344826934,1733812238255,-500.0,0.00011098,2]
[344826935,1733812238264,-500.0,0.00011098,2]
[344826936,1733812238274,-500.0,0.00011098,2]
[344826937,1733812238283,-500.0,0.00011098,2]
[344826938,1733812238292,-213.84299799,0.00011098,2]
[344826940,1733812238301,-621.43,0.00011098,2]
[344826941,1733812238310,-500.0,0.00011098,2]
[344826943,1733812238319,-500.0,0.00011098,2]
[344826944,1733812238328,-500.0,0.00011098,2]
[344826945,1733812238337,-500.0,0.00011098,2]
[344826946,1733812238346,-592.0,0.00011098,2]
[344826947,1733812238355,-500.0,0.00011098,2]
[344826948,1733812238365,-500.0,0.00011098,2]
[344826949,1733812238381,-500.0,0.00011098,2]
[344826950,1733812238391,-500.0,0.00011098,2]
[344826951,1733812238399,-500.0,0.00011098,2]
[344826952,1733812238409,-500.0,0.00011098,2]
[344826953,1733812238420,-202.70843834,0.00011098,2]
[344826954,1733812238429,-500.0,0.00011098,2]
[344826955,1733812238438,-500.0,0.00011098,2]
[344826956,1733812238448,-500.0,0.00011098,2]
[344826957,1733812238457,-500.0,0.00011098,2]
[344826958,1733812238466,-500.0,0.00011098,2]
[344826960,1733812238475,-856.34,0.00011098,2]
[344826961,1733812238485,-500.0,0.00011098,2]
[344826962,1733812238494,-610.27,0.00011098,2]
[344826963,1733812238503,-623.23,0.00011098,2]
[344826964,1733812238512,-500.0,0.00011098,2]
[344826965,1733812238521,-876.05,0.00011098,2]
[344826966,1733812238530,-571.48816542,0.00011098,2]
[344826967,1733812238539,-3388.87796077,0.00011098,2]
[344826968,1733812238548,-500.0,0.00011098,2]
[344826969,1733812238558,-500.0,0.00011098,2]
[344826970,1733812238567,-500.0,0.00011098,2]
[344826971,1733812238575,-900.74,0.00011098,2]
[344826972,1733812238584,-514.72,0.00011098,2]
[344826973,1733812238593,-500.0,0.00011098,2]
[344826974,1733812238603,-500.0,0.00011098,2]
[344826975,1733812238612,-500.0,0.00011098,2]
[344826976,1733812238621,-494.46862254,0.00011098,2]
[344826977,1733812238630,-500.0,0.00011098,2]
[344826978,1733812238639,-500.0,0.00011098,2]
[344826979,1733812238648,-3513.0,0.00011099,2]
[344826980,1733812238658,-500.0,0.00011099,2]
[344826981,1733812238667,-500.0,0.00011099,2]
[344826982,1733812238676,-500.0,0.00011099,2]
[344826983,1733812238686,-500.0,0.00011099,2]
[344826984,1733812238695,-500.0,0.00011099,2]
[344826985,1733812238704,-500.0,0.00011099,2]
[344826986,1733812238713,-500.0,0.00011099,2]
[344826987,1733812238722,-500.0,0.00011099,2]
[344826988,1733812238731,-342.92,0.00011099,2]
[344826989,1733812238743,-500.0,0.00011099,2]
[344826990,1733812238753,-500.0,0.00011099,2]
[344826991,1733812238763,-455.08,0.00011099,2]
[344826992,1733812238772,-500.0,0.00011099,2]
[344826993,1733812238782,-500.0,0.00011099,2]
[344826994,1733812238791,-500.0,0.00011099,2]
[344826995,1733812238801,-500.0,0.00011099,2]
[344826996,1733812238810,-520.26611277,0.00011099,2]
[344826997,1733812238819,-500.0,0.00011099,2]
[344826998,1733812238828,-500.0,0.00011099,2]
[344826999,1733812238837,-500.0,0.00011099,2]
[344827000,1733812238847,-500.0,0.00011099,2]
[344827001,1733812238857,-500.0,0.00011099,2]
[344827002,1733812238867,-500.0,0.00011099,2]
[344827003,1733812238875,-467.17034012,0.00011099,2]
[344827004,1733812238885,-500.0,0.00011099,2]
[344827005,1733812238894,-500.0,0.00011099,2]
[344827006,1733812238903,-500.0,0.00011099,2]
[344827007,1733812238913,-500.0,0.00011099,2]
[344827008,1733812238922,-500.0,0.00011099,2]
[344827009,1733812238931,-500.0,0.00011099,2]
[344827010,1733812238940,-500.0,0.00011099,2]
[344827011,1733812238950,-500.0,0.00011099,2]
[344827012,1733812238959,-500.0,0.00011099,2]
[344827013,1733812238969,-500.0,0.00011099,2]
[344827014,1733812238978,-500.0,0.00011099,2]
[344827015,1733812238989,-500.0,0.00011099,2]
[344827016,1733812238998,-401.40066623,0.00011099,2]
[344827017,1733812239007,-500.0,0.00011099,2]
[344827018,1733812239017,-500.0,0.00011099,2]
[344827019,1733812239027,-500.0,0.00011099,2]
[344827020,1733812239036,-500.0,0.00011099,2]
[344827021,1733812239046,-500.0,0.00011099,2]
[344827022,1733812239055,-557.51949662,0.00011099,2]
[344827023,1733812239064,-500.0,0.00011099,2]
[344827024,1733812239073,-310.56563079,0.00011099,2]
[344827025,1733812239082,-500.0,0.00011099,2]
[344827026,1733812239092,-500.0,0.00011099,2]
[344827027,1733812239101,-2000.0,0.00011099,2]
[344827028,1733812239111,-500.0,0.00011099,2]
[344827029,1733812239120,-500.0,0.00011099,2]
[344827030,1733812239129,-500.0,0.00011099,2]
[344827031,1733812239138,-500.0,0.00011099,2]
[344827032,1733812239148,-500.0,0.00011099,2]
[344827033,1733812239157,-500.0,0.00011099,2]
[344827034,1733812239166,-500.0,0.00011099,2]
[344827035,1733812239175,-385.62,0.00011099,2]
[344827036,1733812239184,-500.0,0.00011099,2]
[344827037,1733812239193,-500.0,0.00011099,2]
[344827038,1733812239202,-500.0,0.00011099,2]
[344827039,1733812239212,-500.0,0.00011099,2]